bitfinex/quotes_ETHUSD_20251221
["timestamp","ask_amount","ask_price","bid_price","bid_amount"]
[1766275201507,0.3642,2981.3,2980.9,0.001]
[1766275201680,1.4846,2981.3,2980.9,0.001]
[1766275202891,1.1204,2980.9,2980.4,0.001]
[1766275203205,0.002,2981.3,2980.4,0.50585254]
[1766275203380,0.3622,2981.6,2980.5,0.4693]
[1766275203582,0.3622,2981.6,2980.5,0.50585254]
[1766275203907,1.1204,2981.7,2980.6,0.4697]
[1766275204076,1.1204,2981.3,2980.5,0.50585254]
[1766275204277,1.1204,2981.1,2980.4,0.001]
[1766275204514,1.1204,2980.8,2980.5,0.50585254]
[1766275204806,0.3622,2980.7,2980.4,0.001]
[1766275205305,1.4326,2981.1,2980.5,0.4703]
[1766275205879,0.3726,2981.3,2980.6,0.4707]
[1766275206080,0.6,2984.0,2980.6,0.4707]
[1766275206081,0.8429,2981.7,2980.6,0.4707]
[1766275206325,0.23419,2981.6,2980.6,0.4707]
[1766275206608,1.66679,2981.6,2980.6,0.4707]
[1766275206809,1.4326,2981.6,2980.8,0.471]
[1766275207117,0.002,2981.6,2980.8,0.471]
[1766275207884,0.3746,2981.6,2980.8,0.471]
[1766275208302,1.062,2981.6,2980.7,0.50685254]
[1766275208505,1.06,2981.2,2980.7,0.50685254]
[1766275208705,0.77695841,2981.5,2980.7,0.50685254]
[1766275208706,1.4326,2981.4,2980.7,0.50685254]
[1766275208900,1.4326,2981.4,2980.8,0.4656]
[1766275209105,0.3726,2981.4,2980.8,0.4656]
[1766275210597,1.4346,2981.6,2980.8,0.4604]
[1766275211323,1.4346,2981.6,2981.0,0.4604]
[1766275211837,0.3746,2981.6,2981.0,0.4604]
[1766275214702,1.8736,2982.0,2981.0,0.4604]
[1766275214904,1.8736,2982.0,2981.2,0.4483]
[1766275215215,2.70796,2982.0,2981.2,0.4483]
[1766275217025,1.8736,2982.0,2981.2,0.4483]
[1766275217404,1.8736,2982.0,2981.3,0.4434]
[1766275219933,1.8736,2982.0,2981.3,0.47694241]
[1766275222707,1.8736,2982.0,2981.4,0.4295]
[1766275224943,1.8553,2982.0,2981.4,0.4295]
[1766275227338,1.501,2982.0,2981.4,0.4295]
[1766275227529,1.8553,2982.0,2981.4,0.4295]
[1766275227948,0.002,2982.0,2981.4,0.4791398]
[1766275228140,0.002,2982.0,2981.5,0.4164]
[1766275228339,0.002,2982.0,2981.5,1.42402604]
[1766275230848,0.3563,2982.0,2981.5,1.42402604]
[1766275231865,1.4723,2981.9,2981.5,1.00762604]
[1766275232038,0.3543,2981.6,2981.3,0.436]
[1766275232519,0.002,2982.0,2981.3,0.436]
[1766275232520,0.3543,2981.8,2981.3,0.437]
[1766275232953,1.118,2981.8,2981.3,0.437]
[1766275233214,0.002,2982.0,2981.3,0.437]
[1766275233215,1.4723,2981.7,2981.3,0.437]
[1766275236450,0.3543,2981.7,2981.3,0.437]
[1766275236757,0.3543,2981.7,2981.3,1.4902]
[1766275238140,0.3562,2981.6,2981.3,0.437]
[1766275238656,0.3562,2981.6,2981.3,0.001]
[1766275238959,0.3562,2981.5,2981.3,0.001]
[1766275239539,1.4448,2981.5,2981.3,0.001]
[1766275241145,1.0886,2981.4,2980.8,0.001]
[1766275241470,0.48816255,2981.3,2980.8,0.001]
[1766275241840,1.4448,2981.0,2980.4,3.35625363]
[1766275242061,1.4448,2981.0,2980.5,1.4015]
[1766275242668,1.4448,2981.0,2980.5,4.75663261]
[1766275243871,1.4448,2981.0,2980.5,1.4015]
[1766275244469,1.4448,2981.0,2980.5,4.75664167]
[1766275245177,1.4448,2981.0,2980.5,1.4015]
[1766275246976,1.0886,2981.2,2980.5,0.001]
[1766275247170,1.4448,2980.9,2980.5,0.001]
[1766275249278,1.4448,2980.9,2980.5,0.3483]
[1766275250884,1.4448,2980.9,2980.5,0.001]
[1766275251085,3.35413809,2981.4,2980.5,0.001]
[1766275251290,1.4448,2981.0,2980.5,0.001]
[1766275251587,1.4448,2980.7,2980.5,0.001]
[1766275254289,0.24528086,2981.0,2980.2,0.10403255]
[1766275254489,0.3562,2980.8,2980.2,0.10403255]
[1766275254700,0.3562,2980.6,2980.2,0.10403255]
[1766275254890,1.4448,2980.6,2980.2,0.10403255]
[1766275257202,1.0886,2980.6,2980.1,0.001]
[1766275257375,1.0886,2980.6,2980.1,3.35658329]
[1766275257702,0.3562,2980.8,2980.1,3.35658329]
[1766275257703,1.57921921,2980.8,2980.2,1.4005]
[1766275257902,1.0886,2980.7,2980.2,1.4005]
[1766275258206,1.4448,2980.7,2980.2,1.4005]
[1766275258874,1.0886,2980.7,2980.2,1.4005]
[1766275259078,1.0886,2980.7,2980.3,0.3473]
[1766275262125,1.4448,2980.7,2980.3,0.3473]
[1766275263824,1.4448,2980.7,2980.3,0.3483]
[1766275266699,0.002,2980.8,2980.3,0.3483]
[1766275266896,1.4257,2980.8,2980.3,0.3483]
[1766275268631,1.4257,2980.8,2980.3,0.001]
[1766275268632,1.4237,2980.7,2980.3,0.001]
[1766275269405,0.3378,2980.7,2980.3,0.001]
[1766275269604,1.0859,2980.6,2980.3,0.001]
[1766275270428,1.4237,2980.6,2980.3,0.001]
[1766275274028,1.0859,2980.6,2980.3,0.001]
[1766275276330,1.4237,2980.6,2980.3,0.001]
[1766275278137,0.3378,2980.6,2980.3,0.001]
[1766275278436,1.4237,2980.4,2980.1,0.001]
[1766275278656,0.26990877,2980.8,2980.1,0.001]
[1766275278657,0.439,2980.6,2980.1,0.001]
[1766275278844,1.4237,2980.3,2980.1,0.001]
[1766275279721,0.3378,2980.3,2980.1,0.001]
[1766275279946,1.0859,2980.2,2980.1,0.001]
[1766275283950,0.3378,2980.3,2980.1,0.001]
[1766275290370,1.4294,2980.3,2980.1,0.001]
[1766275291378,1.4304,2980.3,2980.1,0.001]
[1766275291768,0.001,2980.3,2980.1,0.001]
[1766275293088,1.4651,2980.2,2980.0,0.002]
[1766275295768,1.0864,2980.1,2980.0,0.002]
[1766275296380,1.0864,2980.1,2979.9,0.001]
[1766275304294,1.4526,2980.1,2979.9,0.001]
[1766275305281,0.439,2980.2,2979.6,0.001]
[1766275305593,1.4526,2980.0,2979.6,0.001]
[1766275305789,0.439,2980.2,2979.6,0.001]
[1766275305990,0.439,2980.2,2979.7,1.355]
[1766275306499,0.439,2980.2,2979.8,0.3484]
[1766275306693,0.439,2980.2,2979.8,1.355]
[1766275307986,0.439,2980.2,2979.7,3.35595486]
[1766275308293,0.439,2980.2,2979.9,0.002]
[1766275308496,0.001,2980.3,2980.0,0.3484]
[1766275308668,0.001,2980.1,2980.0,0.3484]
[1766275318805,0.001,2980.3,2980.0,1.355]
[1766275319405,0.001,2980.3,2980.0,1.0066]
[1766275319707,0.001,2980.3,2980.1,0.3484]
[1766275321610,0.3662,2981.0,2980.4,0.3186]
[1766275321782,0.3662,2981.0,2980.6,0.3484]
[1766275323408,1.0864,2981.1,2980.6,0.3484]
[1766275323409,1.4526,2981.1,2980.6,0.3484]
[1766275325807,1.0127,2981.0,2980.6,0.3484]
[1766275334829,0.439,2981.2,2980.6,0.3484]
[1766275335027,0.439,2981.2,2980.7,0.3671]
[1766275335199,1.8061,2981.2,2980.7,0.3671]
[1766275336252,0.7934,2981.2,2980.7,0.3671]
[1766275336555,1.0127,2981.1,2980.7,0.3671]
[1766275352442,1.3826,2981.1,2980.5,4.47632514]
[1766275353171,1.3846,2981.1,2980.6,0.3555]
[1766275359079,1.3846,2981.1,2980.6,3.71052786]
[1766275359248,1.0147,2981.1,2980.6,3.68312786]
[1766275359573,1.0147,2981.1,2980.7,0.3532]
[1766275360870,0.002,2981.1,2980.7,3.70810487]
[1766275361070,0.002,2981.1,2980.8,0.44]
[1766275362359,0.439,2981.2,2980.9,0.3532]
[1766275362560,0.439,2981.2,2980.9,0.6821]
[1766275363082,0.001,2981.3,2980.9,0.3532]
[1766275363284,1.0451,2981.3,2980.9,0.3532]
[1766275363888,1.4179,2981.3,2980.9,0.3532]
[1766275366291,1.4179,2981.3,2980.8,0.44]
[1766275366791,1.4169,2981.2,2980.8,0.44]
[1766275373699,1.4189,2981.2,2980.8,0.44]
[1766275373998,0.002,2981.2,2980.8,0.44]
[1766275374204,0.002,2981.2,2980.8,0.8340288]
[1766275377074,0.002,2981.2,2980.8,1.1872288]
[1766275380110,0.44,2981.5,2980.9,0.3532]
[1766275380302,0.44,2981.5,2980.8,4.18881528]
[1766275380618,0.001,2981.5,2980.9,0.6819]
[1766275380907,0.001,2981.5,2981.1,0.3532]
[1766275381285,0.001,2981.5,2981.1,0.3287]
[1766275381489,0.001,2981.5,2981.2,0.3532]
[1766275381702,0.001,2981.5,2981.3,0.3532]
[1766275388829,0.003,2981.5,2981.3,0.3532]
[1766275390291,0.003,2981.5,2981.2,0.3289]
[1766275393229,0.003,2981.5,2981.3,0.3396]
[1766275396336,0.003,2981.5,2981.2,0.54523736]
[1766275396629,0.003,2981.5,2981.1,1.34740206]
[1766275396831,0.003,2981.5,2981.2,0.3396]
[1766275398035,0.003,2981.5,2981.3,0.001]
[1766275416152,0.002,2981.7,2981.3,0.358]
[1766275424259,1.0267,2981.5,2981.3,0.001]
[1766275424458,1.3937,2981.5,2981.3,0.001]
[1766275427664,0.367,2981.4,2980.8,0.002]
[1766275427873,1.3937,2981.3,2980.8,0.795]
[1766275428039,1.3937,2981.3,2980.8,4.56476745]
[1766275430167,0.367,2981.5,2980.9,0.357]
[1766275430337,1.0267,2981.4,2980.9,0.357]
[1766275432074,1.0267,2981.3,2980.8,0.41698455]
[1766275432275,1.0267,2981.3,2980.8,0.77398455]
[1766275432463,1.0267,2981.3,2980.9,0.41288794]
[1766275433175,1.0267,2981.3,2980.9,0.76988794]
[1766275433671,1.4657,2981.6,2981.0,0.357]
[1766275434453,1.0267,2981.5,2981.0,0.357]
[1766275440581,1.3937,2981.5,2981.0,0.357]
[1766275441078,1.3957,2981.5,2981.0,0.357]
[1766275441378,1.3957,2981.5,2981.0,0.87054105]
[1766275450386,1.3957,2981.5,2981.0,0.357]
[1766275451894,0.9924,2981.4,2981.0,0.357]
[1766275453199,0.3548,2980.9,2980.5,0.001]
[1766275453494,1.3472,2980.7,2980.5,0.001]
[1766275454157,1.00802556,2980.6,2980.5,0.001]
[1766275458496,1.3472,2980.4,2980.1,0.001]
[1766275458792,0.9924,2980.4,2980.1,0.001]
[1766275458994,1.3472,2980.6,2980.1,0.001]
[1766275459194,1.00812718,2980.3,2980.1,0.001]
[1766275468477,1.00812718,2980.3,2980.1,0.342]
[1766275468805,1.00812718,2980.3,2980.0,0.9006]
[1766275469171,0.439,2980.8,2980.1,0.2697]
[1766275469499,0.9006,2980.5,2980.1,0.2697]
[1766275469704,1.8658,2980.8,2980.2,0.2697]
[1766275470204,0.001,2980.5,2980.2,0.2697]
[1766275471418,0.001,2980.5,2980.0,0.2706]
[1766275472114,0.001,2980.5,2980.0,3.62620588]
[1766275472319,0.001,2980.5,2980.1,0.2696]
[1766275472516,0.439,2981.2,2980.3,0.2686]
[1766275472721,0.3486,2981.0,2980.3,0.2686]
[1766275472918,1.0080662,2980.9,2980.3,0.2686]
[1766275473112,0.439,2981.2,2980.4,0.2686]
[1766275473309,0.18658,2981.1,2980.4,0.2686]
[1766275473519,1.00803233,2981.0,2980.4,0.2686]
[1766275476637,1.00903233,2981.0,2980.4,0.2686]
[1766275483965,1.00903233,2981.0,2980.4,3.3552444]
[1766275484134,1.00903233,2981.0,2980.5,0.2684]
[1766275484857,0.001,2981.0,2980.5,0.2684]
[1766275486558,1.3947,2981.0,2980.4,0.002]
[1766275486742,2.40273233,2981.0,2980.4,0.2704]
[1766275487361,1.3947,2981.0,2980.4,3.62563145]
[1766275488664,2.40273233,2981.0,2980.4,3.62563145]
[1766275488839,2.40273233,2981.0,2980.4,0.2704]
[1766275489164,2.40273233,2981.0,2980.4,3.62564173]
[1766275489367,2.40273233,2981.0,2980.5,0.2684]
[1766275495084,0.3489,2981.0,2980.5,3.623538]
[1766275495373,0.001,2981.0,2980.6,0.6307538]
[1766275496071,0.001,2981.0,2980.7,0.2682]
[1766275499118,0.001,2981.0,2980.4,0.002]
[1766275499413,0.001,2981.0,2980.0,0.001]
[1766275499702,1.0458,2980.7,2980.0,0.438]
[1766275499880,0.001,2981.0,2980.0,0.001]
[1766275500081,1.0458,2980.7,2980.0,0.001]
[1766275500302,1.00915428,2981.0,2980.0,0.001]
[1766275500303,0.3479,2980.2,2980.0,0.001]
[1766275500503,1.3937,2980.2,2980.0,0.001]
[1766275501410,1.3937,2980.6,2980.0,0.001]
[1766275501792,1.3937,2980.9,2980.1,0.2701]
[1766275503524,1.3937,2980.9,2980.3,0.2701]
[1766275505626,0.44,2981.0,2980.4,3.35525432]
[1766275505793,0.001,2981.0,2980.5,0.27]
[1766275508522,0.001,2981.0,2980.5,3.62509003]
[1766275509206,0.001,2981.0,2980.5,4.04306693]
[1766275509625,0.001,2981.0,2980.5,3.77306693]
[1766275509833,0.001,2981.0,2980.6,0.2646]
[1766275510905,0.001,2981.0,2980.6,3.35502873]
[1766275511130,0.74984298,2981.4,2980.7,0.2618]
[1766275511300,2.08864298,2981.4,2980.7,0.2618]
[1766275511515,1.3388,2981.4,2980.7,0.2618]
[1766275511710,1.3388,2981.4,2980.8,0.40538287]
[1766275512053,1.3388,2981.4,2980.9,0.26]
[1766275516326,1.3388,2981.4,2980.6,3.791993]
[1766275516540,0.3477,2981.3,2980.7,0.2532]
[1766275517457,1.3388,2981.3,2980.7,0.2532]
[1766275518074,1.3388,2981.3,2980.7,0.6578193]
[1766275518273,0.3477,2981.0,2980.6,0.437]
[1766275518476,1.3388,2981.0,2980.6,0.437]
[1766275519468,1.3388,2981.0,2980.6,3.7920141]
[1766275519836,0.3477,2981.0,2980.6,3.7920141]
[1766275520036,0.9911,2981.2,2980.7,0.40413141]
[1766275520269,1.3388,2981.2,2980.7,0.40413141]
[1766275523938,1.3388,2981.2,2980.7,0.64303141]
[1766275527479,1.3408,2981.2,2980.7,0.64303141]
[1766275537784,1.3408,2981.2,2980.7,0.2389]
[1766275562420,0.002,2981.2,2980.6,0.438]
[1766275562586,1.3631,2981.1,2980.6,0.438]
[1766275563619,1.3631,2981.1,2980.6,3.79301273]
[1766275565433,1.3631,2981.1,2980.6,3.98081273]
[1766275566316,1.3631,2981.1,2980.6,0.6258]
[1766275570021,1.3631,2981.1,2980.6,3.98082174]
[1766275573130,0.002,2981.2,2980.6,0.001]
[1766275573340,0.9968,2980.7,2980.4,0.001]
[1766275573625,0.9968,2980.7,2980.0,0.001]
[1766275573626,0.9968,2980.4,2980.0,0.001]
[1766275573931,0.439,2980.7,2980.0,0.568]
[1766275573932,1.3407,2980.6,2980.0,0.568]
[1766275574097,0.17797,2980.5,2980.0,0.568]
[1766275574807,1.3407,2980.5,2980.0,0.568]
[1766275578904,0.439,2980.7,2980.1,0.563]
[1766275579131,1.7797,2980.7,2980.1,0.563]
[1766275579503,0.3439,2980.6,2980.1,0.563]
[1766275580810,1.4358,2980.7,2980.1,0.563]
[1766275581012,0.17797,2980.6,2980.1,0.563]
[1766275586443,1.3539,2980.6,2980.1,0.563]
[1766275598755,1.3549,2980.6,2980.1,0.563]
[1766275600524,0.001,2980.6,2980.2,0.5473]
[1766275600938,0.001,2980.6,2980.2,0.437]
[1766275601132,0.001,2980.6,2980.2,0.9837]
[1766275601436,1.8079,2981.1,2980.3,0.5467]
[1766275601948,2.81595943,2981.1,2980.3,0.5467]
[1766275602666,1.8079,2981.1,2980.3,0.5467]
[1766275604754,0.3438,2981.1,2980.4,0.5433]
[1766275604923,0.002,2981.1,2980.6,0.5433]
[1766275608357,0.002,2981.1,2980.6,0.9803]
[1766275608668,0.002,2981.1,2980.7,0.5417]
[1766275613358,0.002,2981.1,2980.8,0.539]
[1766275622594,0.002,2981.1,2980.5,0.001]
[1766275622761,0.3418,2980.6,2980.0,0.001]
[1766275623087,0.3418,2980.6,2979.7,0.001]
[1766275623088,0.13443819,2980.6,2979.7,0.001]
[1766275623270,0.47623819,2980.6,2980.0,0.5362]
[1766275623471,0.13443819,2980.6,2980.1,0.5362]
[1766275623669,1.8059,2980.8,2980.1,0.5362]
[1766275627297,1.3027,2980.7,2980.1,0.5362]
[1766275628098,0.439,2980.8,2980.1,0.5362]
[1766275629791,0.001,2980.7,2980.1,0.5362]
[1766275629992,0.001,2980.7,2980.2,0.5327]
[1766275637011,0.361,2980.7,2980.2,0.5327]
[1766275637313,1.3037,2980.7,2980.2,0.5327]
[1766275649493,0.3679,2980.1,2979.4,0.001]
[1766275649690,1.7877,2980.1,2979.4,0.9338]
[1766275649889,1.7877,2980.1,2979.5,1.2149]
[1766275650117,0.17877,2980.0,2979.5,1.2149]
[1766275650330,1.18717166,2980.0,2979.5,1.2149]
[1766275650818,0.17877,2980.0,2979.5,1.2149]
[1766275651022,1.00837116,2979.9,2979.5,1.2149]
[1766275651401,1.00837116,2979.9,2979.4,0.001]
[1766275651616,0.9808,2979.8,2979.4,0.001]
[1766275651936,0.3679,2979.6,2979.4,0.001]
[1766275652139,1.3487,2979.6,2979.4,0.001]
[1766275652840,1.48315355,2979.6,2979.4,0.001]
[1766275654739,1.48315355,2979.6,2979.5,0.001]
[1766275656753,1.3487,2979.6,2979.5,0.001]
[1766275658943,0.3679,2979.6,2979.5,0.001]
[1766275661348,0.13445355,2979.7,2979.5,0.001]
[1766275661940,0.001,2979.6,2979.5,0.001]
[1766275663458,0.13445355,2979.7,2979.5,0.001]
[1766275666937,0.9271,2979.9,2979.5,0.001]
[1766275667270,0.9622,2979.8,2979.5,0.001]
[1766275668075,1.3161,2979.8,2979.5,0.001]
[1766275668564,0.001,2979.7,2979.5,0.001]
[1766275670863,0.001,2979.7,2979.5,0.9622]
[1766275671063,0.9271,2980.4,2979.6,0.6191]
[1766275671263,1.281,2980.4,2979.6,0.6191]
[1766275671468,1.281,2980.4,2979.7,0.6191]
[1766275673558,0.439,2980.5,2979.7,0.6191]
[1766275673738,1.281,2980.3,2979.7,0.6191]
[1766275681214,0.9271,2980.3,2979.6,0.002]
[1766275681515,0.001,2980.4,2979.3,0.001]
[1766275681516,0.9271,2979.6,2979.3,0.001]
[1766275681674,0.3539,2979.5,2979.3,0.001]
[1766275693385,0.3549,2979.5,2979.3,0.001]
[1766275695391,1.3074,2979.5,2979.3,0.001]
[1766275696515,0.3553,2979.4,2979.3,0.001]
[1766275698720,0.9535,2979.5,2979.3,0.001]
[1766275698909,1.3088,2979.5,2979.3,0.001]
[1766275701320,0.001,2979.5,2979.3,0.001]
[1766275709025,0.9136,2979.5,2979.3,0.001]
[1766275709323,1.2679,2979.5,2979.3,0.001]
[1766275711698,0.3543,2979.3,2979.1,0.438]
[1766275712028,1.2669,2979.3,2979.1,0.438]
[1766275712631,1.2669,2979.3,2979.1,0.001]
[1766275712809,1.2669,2979.2,2979.0,0.001]
[1766275713723,0.3543,2979.2,2979.0,0.001]
[1766275719934,0.964,2979.3,2979.0,0.001]
[1766275720314,1.3221,2979.3,2979.0,0.001]
[1766275725037,0.3581,2979.3,2979.0,0.001]
[1766275725536,1.3231,2979.5,2979.0,0.001]
[1766275725726,0.3581,2979.4,2979.0,0.001]
[1766275725928,1.3221,2979.4,2979.0,0.001]
[1766275731517,0.46891785,2979.5,2979.0,0.6137]
[1766275731918,0.82701785,2979.5,2979.0,0.6137]
[1766275732117,1.79101785,2979.5,2979.0,0.6137]
[1766275738755,0.46891785,2979.5,2979.0,0.001]
[1766275738954,1.3221,2979.4,2979.0,0.001]
[1766275741936,0.964,2979.2,2979.0,0.001]
[1766275742138,1.3221,2979.1,2978.9,0.001]
[1766275743654,0.3581,2979.1,2978.9,0.001]
[1766275747734,1.3377,2979.3,2978.9,0.001]
[1766275748853,0.3747,2979.5,2978.9,0.6126]
[1766275749034,1.2804,2979.5,2978.9,0.6126]
[1766275749237,1.2794,2979.4,2978.9,0.6126]
[1766275749438,0.9057,2979.4,2978.9,0.001]
[1766275749763,1.2794,2979.3,2978.9,0.001]
[1766275755269,1.2804,2979.3,2978.9,0.001]
[1766275767357,0.3747,2979.3,2978.9,0.001]
[1766275767660,0.001,2979.3,2978.9,0.611]
[1766275770195,0.3393,2979.3,2978.9,0.001]
[1766275770354,1.3372,2979.3,2978.9,0.001]
[1766275777492,0.3393,2979.3,2978.9,0.6101]
[1766275777792,0.001,2979.3,2978.9,0.6101]
[1766275779097,0.001,2979.3,2978.9,0.001]
[1766275779589,0.001,2979.3,2979.0,0.6089]
[1766275779898,0.001,2979.5,2979.0,0.6079]
[1766275781599,0.001,2979.5,2979.0,3.96470149]
[1766275781777,0.001,2979.5,2979.1,0.39657015]
[1766275781967,0.001,2979.5,2979.1,1.00427015]
[1766275784402,0.001,2979.5,2979.2,0.6076]
[1766275785100,0.001,2979.5,2979.1,0.39657015]
[1766275791201,0.3587,2979.5,2979.1,0.39657015]
[1766275792604,0.001,2979.5,2979.1,0.39657015]
[1766275792903,0.001,2979.5,2979.1,1.00367015]
[1766275800314,1.2612,2980.0,2979.3,0.6057]
[1766275800493,0.439,2979.8,2979.3,0.6057]
[1766275801212,0.9035,2979.6,2979.1,0.437]
[1766275801381,1.2612,2979.5,2979.1,3.7937161]
[1766275801586,0.3577,2979.6,2979.2,1.28307161]
[1766275801809,1.2612,2979.6,2979.2,0.9035]
[1766275801991,1.2612,2979.6,2979.1,4.3993161]
[1766275802190,1.2612,2979.6,2979.2,1.008422]
[1766275803094,0.439,2979.8,2979.2,4.36502723]
[1766275803296,0.439,2979.8,2979.3,0.6055]
[1766275803705,0.439,2979.8,2979.3,1.613922]
[1766275803916,0.44,2979.8,2979.3,1.613922]
[1766275805110,0.44,2979.8,2979.7,8.41908469]
[1766275805411,0.001,2979.8,2979.7,8.41908469]
[1766275813628,0.3542,2979.8,2979.7,8.41908469]
[1766275819086,1.2678,2979.8,2979.7,8.41908469]
[1766275823386,1.2678,2979.8,2979.5,8.42127024]
[1766275825018,1.2678,2979.8,2979.5,0.002]
[1766275825192,1.2678,2979.8,2979.5,8.42127024]
[1766275828032,0.3542,2979.8,2979.5,8.42127024]
[1766275828321,0.3542,2979.8,2979.5,8.42111284]
[1766275833743,0.3542,2979.8,2979.5,0.002]
[1766275833744,0.989,2979.8,2979.5,0.002]
[1766275834030,1.3405,2979.5,2979.0,8.85811284]
[1766275834246,1.3405,2979.5,2979.3,8.41911284]
[1766275835016,1.56347,2979.8,2979.3,8.41911284]
[1766275835333,2.48777,2979.8,2979.3,8.41911284]
[1766275835629,0.3489,2979.7,2979.3,8.41911284]
[1766275836328,1.2732,2979.7,2979.3,8.41911284]
[1766275836831,1.2732,2979.7,2979.3,8.42111284]
[1766275838039,0.99,2979.8,2979.6,8.41911284]
[1766275838264,1.3633,2980.3,2979.6,8.41911284]
[1766275838463,1.00841522,2980.0,2979.6,8.41911284]
[1766275838759,1.00841522,2980.0,2979.6,9.02401284]
[1766275838906,2.28161522,2980.0,2979.6,8.41911284]
[1766275843043,1.2732,2980.0,2979.6,8.41911284]
[1766275843942,0.3489,2979.9,2979.6,8.41911284]
[1766275845936,1.2732,2979.9,2979.6,8.41911284]
[1766275850945,1.2732,2979.9,2979.5,0.002]
[1766275851113,1.2732,2979.9,2979.5,8.42111284]
[1766275851314,0.3489,2979.8,2979.5,8.42111284]
[1766275852355,1.2732,2979.8,2979.5,8.42111284]
[1766275861829,0.001,2979.9,2979.6,1.1988]
[1766275862032,0.001,2980.0,2979.8,9.33481284]
[1766275862259,0.439,2980.2,2979.8,9.61791284]
[1766275862629,1.00835082,2980.1,2979.8,9.33481284]
[1766275862831,0.439,2980.2,2979.8,9.33481284]
[1766275863167,2.72055082,2980.2,2979.8,9.33481284]
[1766275863779,2.72055082,2980.2,2979.8,9.33326715]
[1766275868578,2.72155082,2980.2,2979.8,9.33326715]
[1766275874052,1.7132,2980.2,2979.8,9.33326715]
[1766275876887,1.7132,2980.2,2979.8,9.33526715]
[1766275885587,1.7132,2980.2,2980.1,8.41717214]
[1766275885884,1.98545407,2980.2,2980.1,8.41717214]
[1766275901830,1.98545407,2980.2,2980.0,8.41767818]
[1766275908827,1.98545407,2980.2,2980.0,8.41867818]
[1766275909904,0.3563,2980.1,2980.0,7.04307818]
[1766275910106,2.64489472,2980.2,2980.0,6.66807818]
[1766275910321,3.00119472,2980.2,2980.0,6.66807818]
[1766275917499,0.9914,2980.1,2980.0,6.66807818]
[1766275919532,1.3477,2980.0,2979.8,0.002]
[1766275919838,1.3477,2980.0,2979.7,8.41767818]
[1766275921299,1.3477,2980.0,2979.9,8.41767818]
[1766275924058,1.00834065,2980.3,2980.0,1.2765]
[1766275924381,0.001,2980.4,2980.1,8.41767818]
[1766275924505,0.001,2980.4,2980.0,1.2765]
[1766275924506,0.001,2980.4,2980.3,8.41767818]
[1766275927533,0.001,2980.4,2980.1,1.00824915]
[1766275927738,0.001,2980.4,2980.2,8.41767818]
[1766275932626,0.001,2980.4,2980.0,1.00824915]
[1766275932827,1.3406,2980.4,2979.7,0.437]
[1766275933035,0.001,2980.4,2980.0,9.75237818]
[1766275933556,0.001,2980.4,2980.0,9.75337818]
[1766275935558,0.001,2980.4,2980.0,8.41867818]
[1766275935732,0.3989,2980.3,2979.9,0.63324915]
[1766275935932,0.3989,2980.3,2979.8,0.437]
[1766275936563,0.3989,2980.3,2979.7,9.42594428]
[1766275936863,0.3989,2980.3,2979.8,8.41864117]
[1766275940540,0.3989,2980.3,2980.0,8.41864117]
[1766275941264,1.0092661,2980.4,2980.0,8.41864117]
[1766275941770,1.0092661,2980.4,2979.9,1.3347]
[1766275942068,1.0092661,2980.4,2980.1,8.41864117]
[1766275945371,1.0092661,2980.4,2980.0,1.3347]
[1766275949577,1.0092661,2980.4,2980.0,0.365]
[1766275951077,1.0092661,2980.4,2979.8,9.75281455]
[1766275965508,4.36454024,2980.4,2979.8,8.78311455]
[1766275965720,4.36454024,2980.4,2979.8,8.41811455]
[1766275968817,1.0092661,2980.4,2979.8,8.41811455]
[1766275970519,1.0092661,2980.4,2979.8,9.76671455]
[1766275973688,1.0092661,2980.4,2979.8,1.3496]
[1766275979827,1.0092661,2980.4,2979.8,0.001]
[1766275979998,0.001,2980.4,2980.1,1.3486]
[1766275980523,0.001,2980.4,2980.0,8.4178898]
[1766275982621,0.001,2980.4,2980.0,9.7664898]
[1766275983122,0.001,2980.4,2980.1,0.3741]
[1766275983321,0.001,2980.5,2980.3,9.7664898]
[1766275994755,0.001,2980.5,2980.3,9.3923898]
[1766275994923,0.001,2980.5,2980.3,9.7422898]
[1766275996059,0.001,2980.5,2980.3,10.75042714]
[1766275996258,0.001,2980.5,2980.3,9.7422898]
[1766275996559,0.001,2980.5,2980.4,0.13441831]
[1766275997561,0.001,2980.5,2980.4,0.48431831]
[1766275999336,0.001,2980.5,2980.4,1.50431831]
[1766276004076,0.001,2980.5,2980.4,0.48431831]
[1766276005377,0.001,2980.5,2980.4,8.89891137]
[1766276011190,0.001,2980.5,2980.4,8.89899631]
[1766276014601,0.001,2980.5,2980.4,8.89999631]
[1766276018105,0.001,2980.5,2980.4,8.55009631]
[1766276020609,0.001,2980.5,2980.4,0.13541831]
[1766276028527,0.001,2980.5,2980.4,0.001]
[1766276038320,0.001,2980.5,2979.8,3.35688809]
[1766276038524,0.001,2980.5,2980.0,8.414678]
[1766276038736,0.001,2980.5,2980.3,0.13541831]
[1766276040549,0.001,2980.5,2980.4,0.001]
[1766276048779,0.001,2980.5,2979.9,0.437]
[1766276048932,0.001,2980.5,2979.8,8.415678]
[1766276049251,0.001,2980.5,2980.0,8.414678]